fUST/lending_fUST_20241224
["ID","MTS","AMOUNT","RATE_DAILY","PERIOD"]
[346482225,1735001437989,-152.0,0.00011149,2]
[346482226,1735001437999,-500.0,0.00011157,2]
[346482227,1735001438009,-500.0,0.00011157,2]
[346482228,1735001438018,-500.0,0.00011157,2]
[346482229,1735001438027,-365.79785939,0.00011157,2]
[346482230,1735001438036,-76367.46808754,0.00011158,2]
[346482231,1735001438045,-150.0,0.00011158,2]
[346482232,1735001438055,-150.0,0.00011158,2]
[346482233,1735001438064,-151.0,0.00011158,2]
[346482234,1735001438073,-274.616624,0.00011158,2]
[346482235,1735001438082,-151.0,0.00011158,2]
[346482236,1735001438091,-151.0,0.00011158,2]
[346482237,1735001438101,-151.0,0.00011158,2]
[346482238,1735001438110,-151.0,0.00011158,2]
[346482239,1735001438119,-185.206124,0.00011158,2]
[346482240,1735001438128,-291.781876,0.00011158,2]
[346482241,1735001438138,-151.0,0.00011158,2]
[346482242,1735001438147,-152.344428,0.00011158,2]
[346482243,1735001438157,-151.0,0.00011158,2]
[346482244,1735001438167,-151.0,0.00011158,2]
[346482245,1735001438176,-160.348535,0.00011158,2]
[346482246,1735001438185,-151.0,0.00011158,2]
[346482247,1735001438195,-151.0,0.00011158,2]
[346482248,1735001438204,-239.767616,0.00011158,2]
[346482249,1735001438214,-300.141,0.00011158,2]
[346482250,1735001438224,-152.350113,0.00011158,2]
[346482251,1735001438233,-151.0,0.00011158,2]
[346482252,1735001438243,-152.627305,0.00011158,2]
[346482253,1735001438252,-151.0,0.00011158,2]
[346482254,1735001438262,-151.0,0.00011158,2]
[346482255,1735001438272,-258.712513,0.00011158,2]
[346482256,1735001438281,-151.0,0.00011158,2]
[346482257,1735001438291,-151.0,0.00011158,2]
[346482258,1735001438300,-151.0,0.00011158,2]
[346482259,1735001438310,-151.0,0.00011158,2]
[346482260,1735001438319,-151.0,0.00011158,2]
[346482261,1735001438329,-151.0,0.00011158,2]
[346482262,1735001438339,-151.0,0.00011158,2]
[346482263,1735001438349,-151.0,0.00011158,2]
[346482264,1735001438358,-151.0,0.00011158,2]
[346482265,1735001438368,-151.0,0.00011158,2]
[346482266,1735001438377,-151.0,0.00011158,2]
[346482267,1735001438386,-151.0,0.00011158,2]
[346482268,1735001438395,-151.0,0.00011158,2]
[346482269,1735001438404,-151.0,0.00011158,2]
[346482270,1735001438414,-237.863256,0.00011158,2]
[346482271,1735001438423,-151.0,0.00011158,2]
[346482272,1735001438432,-180.127833,0.00011158,2]
[346482273,1735001438442,-151.0,0.00011158,2]
[346482274,1735001438451,-151.0,0.00011158,2]
[346482275,1735001438460,-151.0,0.00011158,2]
[346482276,1735001438469,-151.0,0.00011158,2]
[346482277,1735001438479,-151.0,0.00011158,2]
[346482278,1735001438488,-174.964808,0.00011158,2]
[346482279,1735001438498,-151.0,0.00011158,2]
[346482280,1735001438507,-151.0,0.00011158,2]
[346482281,1735001438517,-151.0,0.00011158,2]
[346482282,1735001438526,-151.0,0.00011158,2]
[346482283,1735001438535,-151.0,0.00011158,2]
[346482284,1735001438545,-151.0,0.00011158,2]
[346482285,1735001438554,-151.0,0.00011158,2]
[346482286,1735001438564,-151.0,0.00011158,2]
[346482287,1735001438573,-151.0,0.00011158,2]
[346482288,1735001438582,-151.0,0.00011158,2]
[346482289,1735001438594,-151.0,0.00011158,2]
[346482290,1735001438604,-290.943209,0.00011158,2]
[346482291,1735001438614,-151.0,0.00011158,2]
[346482292,1735001438623,-151.0,0.00011158,2]
[346482293,1735001438632,-151.0,0.00011158,2]
[346482294,1735001438641,-151.0,0.00011158,2]
[346482295,1735001438651,-151.0,0.00011158,2]
[346482296,1735001438660,-151.0,0.00011158,2]
[346482297,1735001438670,-151.0,0.00011158,2]
[346482298,1735001438680,-151.0,0.00011158,2]
[346482299,1735001438690,-151.0,0.00011158,2]
[346482300,1735001438702,-151.0,0.00011158,2]
[346482301,1735001438711,-151.0,0.00011158,2]
[346482302,1735001438720,-151.0,0.00011158,2]
[346482303,1735001438730,-151.0,0.00011158,2]
[346482304,1735001438739,-151.0,0.00011158,2]
[346482305,1735001438749,-151.0,0.00011158,2]
[346482306,1735001438758,-151.0,0.00011158,2]
[346482307,1735001438769,-151.0,0.00011158,2]
[346482308,1735001438778,-151.0,0.00011158,2]
[346482309,1735001438787,-151.0,0.00011158,2]
[346482310,1735001438797,-151.0,0.00011158,2]
[346482311,1735001438807,-151.0,0.00011158,2]
[346482312,1735001438817,-151.0,0.00011158,2]
[346482313,1735001438827,-151.0,0.00011158,2]
[346482314,1735001438838,-151.0,0.00011158,2]
[346482315,1735001438848,-151.0,0.00011158,2]
[346482316,1735001438858,-151.0,0.00011158,2]
[346482317,1735001438867,-151.0,0.00011158,2]
[346482318,1735001438876,-151.0,0.00011158,2]
[346482319,1735001438886,-151.0,0.00011158,2]
[346482320,1735001438896,-151.0,0.00011158,2]
[346482321,1735001438905,-151.0,0.00011158,2]
[346482322,1735001438914,-151.0,0.00011158,2]
[346482323,1735001438924,-151.0,0.00011158,2]
[346482324,1735001438933,-151.0,0.00011158,2]
[346482325,1735001438943,-275.866912,0.00011158,2]
[346482326,1735001438954,-151.0,0.00011158,2]
[346482327,1735001438965,-151.0,0.00011158,2]
[346482328,1735001438975,-151.0,0.00011158,2]
[346482329,1735001438988,-151.0,0.00011158,2]
[346482330,1735001438997,-151.0,0.00011158,2]
[346482331,1735001439007,-181.767769,0.00011158,2]
[346482332,1735001439017,-181.767769,0.00011158,2]
[346482333,1735001439026,-181.767769,0.00011158,2]
[346482334,1735001439036,-181.767769,0.00011158,2]
[346482335,1735001439045,-181.767769,0.00011158,2]
[346482336,1735001439055,-181.767769,0.00011158,2]
[346482337,1735001439065,-181.767769,0.00011158,2]
[346482338,1735001439074,-181.767769,0.00011158,2]
[346482339,1735001439083,-181.767769,0.00011158,2]
[346482340,1735001439093,-181.767769,0.00011158,2]
[346482341,1735001439103,-181.767769,0.00011158,2]
[346482342,1735001439112,-181.767769,0.00011158,2]
[346482343,1735001439121,-181.767769,0.00011158,2]
[346482344,1735001439131,-181.767769,0.00011158,2]
[346482345,1735001439141,-181.767769,0.00011158,2]
[346482346,1735001439150,-181.767769,0.00011158,2]
[346482347,1735001439291,-181.767769,0.00011158,2]
[346482348,1735001439302,-181.767769,0.00011158,2]
[346482349,1735001439312,-181.767769,0.00011158,2]
[346482350,1735001439322,-181.767765,0.00011158,2]
[346482351,1735001439332,-151.0,0.00011158,2]
[346482352,1735001439342,-151.0,0.00011158,2]
[346482353,1735001439352,-151.0,0.00011158,2]
[346482354,1735001439361,-151.0,0.00011158,2]
[346482355,1735001439371,-151.0,0.00011158,2]
[346482356,1735001439382,-151.0,0.00011158,2]
[346482357,1735001439392,-151.0,0.00011158,2]
[346482358,1735001439402,-151.0,0.00011158,2]
[346482359,1735001439412,-151.0,0.00011158,2]
[346482360,1735001439422,-449.422438,0.00011158,2]
[346482361,1735001439431,-449.422438,0.00011158,2]
[346482362,1735001439441,-449.422438,0.00011158,2]
[346482363,1735001439452,-449.422438,0.00011158,2]
[346482364,1735001439463,-449.422438,0.00011158,2]
[346482365,1735001439473,-449.422438,0.00011158,2]
[346482366,1735001439483,-449.422438,0.00011158,2]
[346482367,1735001439493,-449.422438,0.00011158,2]
[346482368,1735001439502,-449.422438,0.00011158,2]
[346482369,1735001439512,-449.422438,0.00011158,2]
[346482370,1735001439521,-449.422438,0.00011158,2]
[346482371,1735001439531,-449.422438,0.00011158,2]
[346482372,1735001439541,-449.422438,0.00011158,2]
[346482373,1735001439550,-449.42243,0.00011158,2]
[346482374,1735001439559,-186.668744,0.00011158,2]
[346482375,1735001439569,-186.668744,0.00011158,2]
[346482376,1735001439578,-186.668744,0.00011158,2]
[346482377,1735001439591,-186.668744,0.00011158,2]
[346482378,1735001439601,-186.668744,0.00011158,2]
[346482379,1735001439610,-186.668744,0.00011158,2]
[346482380,1735001439619,-186.668754,0.00011158,2]
[346482381,1735001439629,-151.0,0.00011158,2]
[346482382,1735001439639,-264.293832,0.00011158,2]
[346482383,1735001439648,-151.0,0.00011158,2]
[346482384,1735001439658,-151.0,0.00011158,2]
[346482385,1735001439668,-193.079077,0.00011158,2]
[346482386,1735001439678,-193.079077,0.00011158,2]
[346482387,1735001439688,-193.079077,0.00011158,2]
[346482388,1735001439697,-193.079077,0.00011158,2]
[346482389,1735001439707,-193.079077,0.00011158,2]
[346482390,1735001439716,-193.079077,0.00011158,2]
[346482392,1735001439726,-193.079077,0.00011158,2]
[346482394,1735001439735,-193.079077,0.00011158,2]
[346482396,1735001439743,-193.079077,0.00011158,2]
[346482397,1735001439754,-193.079077,0.00011158,2]
[346482398,1735001439763,-193.079077,0.00011158,2]
[346482400,1735001439773,-193.079077,0.00011158,2]
[346482402,1735001439782,-193.079077,0.00011158,2]
[346482403,1735001439791,-193.079077,0.00011158,2]
[346482404,1735001439800,-193.079077,0.00011158,2]
[346482406,1735001439809,-193.079077,0.00011158,2]
[346482407,1735001439818,-193.079077,0.00011158,2]
[346482408,1735001439828,-193.079077,0.00011158,2]
[346482409,1735001439837,-193.079077,0.00011158,2]
[346482410,1735001439847,-193.079081,0.00011158,2]
[346482411,1735001439857,-268.629204,0.00011158,2]
[346482412,1735001439867,-151.752008,0.00011158,2]
[346482413,1735001439876,-151.0,0.00011158,2]
[346482414,1735001439885,-151.0,0.00011158,2]
[346482415,1735001439895,-151.0,0.00011158,2]
[346482416,1735001439905,-151.0,0.00011158,2]
[346482417,1735001439914,-151.0,0.00011158,2]
[346482418,1735001439923,-151.0,0.00011158,2]
[346482419,1735001439934,-151.0,0.00011158,2]
[346482420,1735001439944,-151.0,0.00011158,2]
[346482421,1735001439954,-151.0,0.00011158,2]
[346482422,1735001439964,-151.0,0.00011158,2]
[346482423,1735001439974,-294.89008,0.00011158,2]
[346482424,1735001439983,-151.0,0.00011158,2]
[346482425,1735001439993,-151.0,0.00011158,2]
[346482426,1735001440002,-155.807955,0.00011158,2]
[346482427,1735001440012,-151.0,0.00011158,2]
[346482428,1735001440021,-151.0,0.00011158,2]
[346482429,1735001440031,-151.0,0.00011158,2]
[346482430,1735001440040,-151.0,0.00011158,2]
[346482431,1735001440049,-151.0,0.00011158,2]
[346482432,1735001440059,-151.0,0.00011158,2]
[346482433,1735001440068,-151.0,0.00011158,2]
[346482434,1735001440077,-151.0,0.00011158,2]
[346482435,1735001440086,-151.0,0.00011158,2]
[346482436,1735001440096,-151.0,0.00011158,2]
[346482437,1735001440105,-151.0,0.00011158,2]
[346482438,1735001440114,-151.0,0.00011158,2]
[346482439,1735001440123,-151.0,0.00011158,2]
[346482440,1735001440132,-151.0,0.00011158,2]
[346482441,1735001440141,-151.0,0.00011158,2]
[346482442,1735001440151,-179.78238,0.00011158,2]
[346482443,1735001440160,-220.656793,0.00011158,2]
[346482444,1735001440169,-220.656793,0.00011158,2]
[346482445,1735001440179,-220.656793,0.00011158,2]
[346482446,1735001440189,-220.656793,0.00011158,2]
[346482447,1735001440198,-220.656793,0.00011158,2]
[346482448,1735001440208,-220.656793,0.00011158,2]
[346482449,1735001440217,-220.656793,0.00011158,2]
[346482450,1735001440226,-220.656793,0.00011158,2]
[346482451,1735001440236,-220.656793,0.00011158,2]
[346482452,1735001440245,-220.656793,0.00011158,2]
[346482453,1735001440255,-220.656793,0.00011158,2]
[346482454,1735001440265,-220.656793,0.00011158,2]
[346482455,1735001440275,-220.656793,0.00011158,2]
[346482456,1735001440284,-220.656793,0.00011158,2]
[346482457,1735001440294,-220.656793,0.00011158,2]
[346482458,1735001440303,-220.656793,0.00011158,2]
[346482459,1735001440313,-220.656793,0.00011158,2]
[346482460,1735001440322,-220.656793,0.00011158,2]
[346482461,1735001440332,-220.656793,0.00011158,2]
[346482462,1735001440342,-220.656785,0.00011158,2]
[346482463,1735001440351,-151.653167,0.00011158,2]
[346482464,1735001440361,-151.0,0.00011158,2]
[346482465,1735001440372,-151.0,0.00011158,2]
[346482466,1735001440388,-151.0,0.00011158,2]
[346482467,1735001440402,-151.0,0.00011158,2]
[346482468,1735001440415,-151.0,0.00011158,2]
[346482469,1735001440428,-151.0,0.00011158,2]
[346482470,1735001440441,-163.612511,0.00011158,2]
[346482471,1735001440456,-163.612511,0.00011158,2]
[346482472,1735001440470,-163.612511,0.00011158,2]
[346482473,1735001440484,-163.612511,0.00011158,2]
[346482474,1735001440499,-163.612511,0.00011158,2]
[346482475,1735001440513,-163.612511,0.00011158,2]
[346482476,1735001440526,-163.612511,0.00011158,2]
[346482477,1735001440539,-163.612511,0.00011158,2]
[346482478,1735001440554,-163.612511,0.00011158,2]
[346482479,1735001440566,-163.612511,0.00011158,2]
[346482480,1735001440579,-163.612511,0.00011158,2]
[346482481,1735001440594,-163.612511,0.00011158,2]
[346482482,1735001440606,-163.612511,0.00011158,2]
[346482483,1735001440620,-163.612511,0.00011158,2]
[346482484,1735001440636,-163.612511,0.00011158,2]
[346482485,1735001440650,-151.0,0.00011158,2]
[346482486,1735001440667,-163.612511,0.00011158,2]
[346482487,1735001440682,-151.0,0.00011158,2]
[346482488,1735001440694,-163.612511,0.00011158,2]
[346482489,1735001440706,-163.612511,0.00011158,2]
[346482490,1735001440717,-163.612511,0.00011158,2]
[346482491,1735001440731,-163.612519,0.00011158,2]
[346482492,1735001440747,-151.0,0.00011158,2]
[346482493,1735001440759,-151.0,0.00011158,2]
[346482494,1735001440771,-151.0,0.00011158,2]
[346482495,1735001440784,-151.0,0.00011158,2]
[346482496,1735001440797,-155.91929306,0.00011158,2]
[346482497,1735001440809,-151.0,0.00011158,2]
[346482498,1735001440821,-151.0,0.00011158,2]
[346482499,1735001440832,-151.0,0.00011158,2]
[346482500,1735001440844,-151.0,0.00011158,2]
[346482501,1735001440859,-151.0,0.00011158,2]
[346482502,1735001440871,-151.0,0.00011158,2]
[346482503,1735001440882,-151.0,0.00011158,2]
[346482504,1735001440894,-151.0,0.00011158,2]
[346482505,1735001440906,-151.0,0.00011158,2]
[346482506,1735001440920,-269.610362,0.00011158,2]
[346482507,1735001440931,-282.7887,0.00011158,2]
[346482508,1735001440943,-180.92656464,0.00011158,2]
[346482509,1735001440968,-101.86213536,0.00011158,2]
[346482510,1735001440980,-282.7887,0.00011158,2]
[346482511,1735001440992,-20.52470915,0.00011158,2]
[346482512,1735001441006,-262.26399085,0.00011158,2]
[346482513,1735001441019,-282.7887,0.00011158,2]
[346482514,1735001441031,-282.7887,0.00011158,2]
[346482515,1735001441043,-282.7887,0.00011158,2]
[346482516,1735001441054,-282.7887,0.00011158,2]
[346482517,1735001441066,-282.7887,0.00011158,2]
[346482518,1735001441078,-212.95250915,0.00011158,2]
[346482569,1735001442902,-436.635,0.000106,2]
[346482571,1735001442912,-69.83619085,0.00011158,2]
[346482573,1735001442921,-282.7887,0.00011158,2]
[346482575,1735001442931,-28.9413925,0.00011158,2]
[346483045,1735001455813,10000.0,0.0002,30]
[346483046,1735001468812,152.35,0.000199,31]
[346483047,1735001468867,152.35,0.000199,31]
[346483048,1735001468929,152.35,0.000199,31]
[346483049,1735001468980,152.35,0.000199,31]
[346483050,1735001469050,152.35,0.000199,31]
[346483051,1735001469108,152.35,0.000199,31]
[346483052,1735001469168,152.35,0.000199,31]
[346483053,1735001469231,152.35,0.000199,31]
[346483054,1735001469288,152.35,0.000199,31]
[346483055,1735001469354,152.35,0.000199,31]
[346483056,1735001469406,152.35,0.000199,31]
[346483057,1735001469473,152.35,0.000199,31]
[346483058,1735001530310,10000.0,0.0002,30]
[346483060,1735001552356,8787.49707484,0.0002,30]
[346483061,1735001563428,10000.0,0.000207,60]
[346483062,1735001573552,10000.0,0.00019,30]
[346483063,1735001593093,10000.0,0.0001002,2]
[346483064,1735001612962,10000.0,0.0001002,2]
[346483066,1735001646811,10000.0,0.0001002,2]
[346483067,1735001655857,10000.0,0.0001002,2]
[346483068,1735001666521,10000.0,0.0001002,2]
[346483069,1735001666874,1084.129,0.00010018,2]
[346483072,1735001712078,10000.0,0.0001002,2]
[346483073,1735001720974,10000.0,0.000207,60]
[346483074,1735001731612,10000.0,0.000207,60]
[346483075,1735001737313,271.18692301,0.00010018,2]
[346483076,1735001740371,10000.0,0.0001002,2]
[346483077,1735001749577,539.37,0.00019,30]
[346483078,1735001752558,10000.0,0.0001002,2]
[346483079,1735001759588,10000.0,0.0001002,2]
[346483080,1735001767559,10000.0,0.0001002,2]
[346483081,1735001787598,10000.0,0.0001002,2]
[346483082,1735001798446,10000.0,0.0001002,2]
[346483083,1735001806372,10000.0,0.0001002,2]
[346483084,1735001821834,10000.0,0.0001002,2]
[346483085,1735001834030,10000.0,0.00019,30]
[346483086,1735001850006,10000.0,0.0001002,2]
[346483087,1735001867767,10000.0,0.00019,30]
[346483088,1735001877466,10000.0,0.000207,60]
[346483089,1735001893529,5265.90360997,0.00010018,2]
[346483090,1735001908834,10000.0,0.0001002,2]
[346483091,1735001922461,10000.0,0.0001002,2]
[346483092,1735001924209,1147.39100521,0.00010018,2]
[346483093,1735001937280,10000.0,0.0001002,2]
[346483094,1735001954643,10000.0,0.00019,30]
[346483095,1735001972077,10000.0,0.00019,30]
[346483096,1735001989209,610.51,0.00019,30]
[346483097,1735002123505,1740.0,0.00022,120]
[346483098,1735002143425,4999.999999,1e-05,2]
[346483099,1735002236486,3000.000001,0.0001,2]
[346483100,1735002267973,300.0,0.00019,30]
[346483101,1735002324900,250.0,9.668e-05,2]
[346483102,1735002351585,251.4304054,9.745e-05,2]
[346483104,1735002431105,-1139.6244399,0.00010033,2]
[346483105,1735002431126,-160.7233379,0.0001004,2]
[346483106,1735002431148,-49.6522222,0.00010118,2]
[346483108,1735002454111,-250.3477778,0.00010118,2]
[346483109,1735002454134,-300.0,0.00010118,2]
[346483110,1735002454159,-299.09518284,0.00010119,2]
[346483111,1735002563101,255.0,0.0001,2]
[346483112,1735002564178,-300.0,0.00010118,2]
[346483113,1735002564205,-300.0,0.00010118,2]
[346483114,1735002564232,-563.83617738,0.00010119,2]
[346483115,1735002564268,-1061.39220708,0.00010119,2]
[346483116,1735002564296,-102.4439703,0.00010119,2]
[346483117,1735002564334,-1163.83617738,0.00010119,2]
[346483118,1735002564383,-278.47360338,0.00010119,2]
[346483119,1735002589356,-1239.23582009,0.00010119,2]
[346483120,1735002589393,-378.91097643,0.00010119,2]
[346483121,1735002589430,-1239.23582009,0.00010119,2]
[346483198,1735002638083,-726.4574572,0.00010048,2]
[346483199,1735002638094,-300.0,0.00010118,2]
[346483200,1735002638103,-300.0,0.00010118,2]
[346483201,1735002638113,-177.63900011,0.00010119,2]
[346483202,1735002638146,-20320.22463222,0.00010119,2]
[346483203,1735002638157,-1060.2401912,0.00010183,2]
[346483204,1735002638166,-454.237,0.000106,2]
[346483205,1735002638176,-300.0,0.00011,2]
[346483206,1735002638186,-260.0,0.00011,2]
[346483207,1735002638196,-170.640707,0.00011046,2]
[346483208,1735002638205,-500.00000001,0.00011046,2]
[346483209,1735002638215,-165.03505992,0.00011057,2]
[346483210,1735002638224,-165.03505991,0.00011058,2]
[346483211,1735002638233,-1570.05865428,0.00011058,2]
[346483212,1735002638243,-165.03505991,0.00011058,2]
[346483213,1735002638254,-420.0,0.00011129,2]
[346483214,1735002638263,-152.0,0.0001113,2]
[346483215,1735002638273,-420.0,0.0001113,2]
[346483216,1735002638283,-150.0,0.00011142,2]
[346483217,1735002638292,-150.0,0.00011142,2]
[346483218,1735002638301,-534.0,0.00011142,2]
[346483219,1735002638310,-2127.0,0.00011142,2]
[346483220,1735002638319,-2358.0,0.00011142,2]
[346483221,1735002638329,-2072.320582,0.00011155,2]
[346483222,1735002638338,-2072.320582,0.00011155,2]
[346483223,1735002638347,-2072.320582,0.00011155,2]
[346483224,1735002638356,-183.93188955,0.00011155,2]
[346483232,1735002640084,-1888.38869245,0.00011155,2]
[346483233,1735002640094,-151.0,0.00011155,2]
[346483234,1735002640104,-151.0,0.00011155,2]
[346483235,1735002640114,-151.0,0.00011155,2]
[346483236,1735002640123,-151.0,0.00011155,2]
[346483237,1735002640134,-151.0,0.00011155,2]
[346483238,1735002640143,-151.0,0.00011155,2]
[346483239,1735002640153,-98.99904752,0.00011155,2]
[346483274,1735002795076,160.0,0.00015579,22]
[346483275,1735002795903,160.0,0.00015495,21]
[346483276,1735002796217,160.0,0.00015412,20]
[346483279,1735002864157,1873.0,0.00022,120]
[346483282,1735003497916,400.0,0.00022,120]
[346483283,1735003542980,-1323.6845947,0.0001002,2]
[346483284,1735003543006,-300.0,0.00010154,2]
[346483285,1735003543032,-24900.0,0.00010155,2]
[346483286,1735003543057,-1350.7768378,0.00010165,2]
[346483287,1735003543083,-451.343,0.000106,2]
[346483288,1735003543108,-5865.49716904,0.00010958,2]
[346483289,1735003543132,-880.7001785,0.00010959,2]
[346483290,1735003543157,-299.0877886,0.00011046,2]
[346483291,1735003543185,-1652.0872806,0.00011058,2]
[346483292,1735003543213,-62976.82315076,0.0001114,2]
[346483293,1735003712099,9517.1557919,0.0002,120]
[346483294,1735003754112,-435.81915625,0.0001004,2]
[346483346,1735003833073,-54.18084375,0.0001004,2]
[346483347,1735003833084,-300.0,0.00010141,2]
[346483348,1735003833094,-8654.92681407,0.00010142,2]
[346483349,1735003833159,-16245.07318593,0.00010142,2]
[346483350,1735003833169,-170.0,0.00010595,2]
[346483351,1735003833179,-299.0877886,0.00011046,2]
[346483352,1735003833190,-367.82491185,0.00011141,2]
[346483353,1735003833200,-396.964524,0.00011141,2]
[346483354,1735003833210,-396.964524,0.00011141,2]
[346483355,1735003833220,-524.572,0.00011142,2]
[346483356,1735003833231,-2127.0,0.00011142,2]
[346483357,1735003833244,-2358.0,0.00011142,2]
[346483358,1735003833254,-153.563866,0.00011142,2]
[346483359,1735003833264,-151.0,0.00011142,2]
[346483360,1735003833274,-385.098652,0.00011142,2]
[346483361,1735003833284,-151.0,0.00011142,2]
[346483362,1735003833294,-385.098652,0.00011142,2]
[346483363,1735003833303,-524.72961,0.00011142,2]
[346483364,1735003833313,-524.72961,0.00011142,2]
[346483365,1735003833324,-151.0,0.00011142,2]
[346483366,1735003833334,-251.15691,0.00011142,2]
[346483367,1735003833344,-387.801961,0.00011142,2]
[346483368,1735003833354,-387.801961,0.00011142,2]
[346483369,1735003833364,-387.801961,0.00011142,2]
[346483370,1735003833374,-387.801961,0.00011142,2]
[346483371,1735003833383,-151.0,0.00011142,2]
[346483372,1735003833392,-317.246482,0.00011142,2]
[346483373,1735003833402,-317.246482,0.00011142,2]
[346483374,1735003833412,-1657.856466,0.00011142,2]
[346483375,1735003833422,-1657.856466,0.00011142,2]
[346483376,1735003833432,-999.287616,0.00011142,2]
[346483377,1735003833442,-980.19822537,0.00011142,2]
[346483408,1735003838427,-500.0,0.0001114,2]
[346483409,1735003838437,-500.0,0.0001114,2]
[346483410,1735003838446,-500.0,0.0001114,2]
[346483411,1735003838455,-500.0,0.0001114,2]
[346483412,1735003838464,-500.0,0.0001114,2]
[346483413,1735003838473,-538.58707776,0.0001114,2]
[346483414,1735003838484,-476.59464354,0.0001114,2]
[346483415,1735003838493,-500.0,0.0001114,2]
[346483416,1735003838502,-547.50048465,0.0001114,2]
[346483417,1735003838511,-500.0,0.0001114,2]
[346483418,1735003838520,-500.0,0.0001114,2]
[346483419,1735003838530,-114.17779405,0.0001114,2]
[346483449,1735003840421,-327.77959333,0.0001114,2]
[346483451,1735003840434,-58.04261262,0.0001114,2]
[346483453,1735003840443,-500.0,0.0001114,2]
[346483455,1735003840453,-500.0,0.0001114,2]
[346483457,1735003840462,-500.0,0.0001114,2]
[346483459,1735003840472,-500.0,0.0001114,2]
[346483461,1735003840483,-500.0,0.0001114,2]
[346483463,1735003840493,-500.0,0.0001114,2]
[346483465,1735003840502,-231.9721211,0.0001114,2]
[346483468,1735003840513,-268.0278789,0.0001114,2]
[346483470,1735003840523,-500.0,0.0001114,2]
[346483471,1735003840532,-20.7121211,0.0001114,2]
[346483474,1735003840543,-337.42023264,0.0001114,2]
[346483476,1735003840553,-500.0,0.0001114,2]
[346483477,1735003840561,-126.75934379,0.0001114,2]
[346483534,1735003843470,-373.24065621,0.0001114,2]
[346483536,1735003843480,-500.0,0.0001114,2]
[346483538,1735003843490,-500.0,0.0001114,2]
[346483540,1735003843499,-500.0,0.0001114,2]
[346483542,1735003843508,-500.0,0.0001114,2]
[346483544,1735003843518,-500.0,0.0001114,2]
[346483546,1735003843527,-359.96667212,0.0001114,2]
[346484592,1735003875883,447.5487553,9.94e-05,2]
[346484594,1735004080675,651.0,0.00022,120]
[346484595,1735004342470,5000.0,0.00022,120]
[346484596,1735004398613,5725.93,0.00022,120]
[346484604,1735004634429,500.0,0.00022,120]
[346484606,1735004751831,500.0,0.0002,120]
[346484938,1735005035832,-224.74389452,0.00010049,2]
[346484940,1735005035842,-425.08394219,0.0001013,2]
[346484943,1735005035858,-87.00769743,0.0001013,2]
[346484945,1735005035868,-300.0,0.00010132,2]
[346484947,1735005035877,-3813.76789876,0.00010133,2]
[346484949,1735005035889,-9534.59089063,0.00010133,2]
[346485170,1735005038518,-6460.09950869,0.00010133,2]
[346485172,1735005038529,-314.74,0.00010133,2]
[346485174,1735005038541,-4776.80170192,0.00010133,2]
[346485176,1735005038550,-250.0,0.00010149,2]
[346485178,1735005038561,-1422.6986435,0.0001023,2]
[346485180,1735005038570,-449.228,0.000106,2]
[346485182,1735005038579,-257.21823998,0.00011038,2]